Workbook

Sheet Instructions
B1: The Level I model uses different input properties depending on whether they are Type 1, Type 2, or Type 3 chemicals (as defined in Mackay et al. 1996). In this version of the model, the chemical 'Type' is selected based on certain chemical properties, rather than by user selection. Selection rules are as follows:
B3: Type 1 chemicals: Substances partition into air, water and octanol. These chemicals have measurable vapour pressures and solubilities. If a vapour pressure value is entered the chemical will be treated as Type 1.
C4: If the vapour pressure is not meaurable or negligible, enter a dash in vapour pressure cell, then continue to fill out the rest of the properties
B5: Type 2 chemicals: The substance does not appreciably partition into air. If a dash is entered into vapour pressure then additional partition ratio inputs will appear for media/water systems
B6: Type 3 chemicals: The substance does not appreciably partition into water. If a dash is entered in the vapour pressure input and the soil/water partition ratio value is 1000 or larger, then the required inputs will be media/air
C7: If the inputted soil/water partition ratio > 1000, ALL partition ratio inputs will change to media/air from media/water. Some values may need to be re-inputted as media/air instead of media/water
B8: Notes: | C8: After the Inputs for your chemical is filled out in the Inputs sheet, it is recommended to add the chemical to the database by clicking the radial button 'Add to DB' to easily-re-enter the correct input data in the future There are sample Type 1, 2, and 3 chemicals in the database
B9: Continue filling out environment inputs and emission amounts. Results are located in the 'Results' sheet and summarized in the 'Diagram' and 'Chart' sheets
B11: Property estimation guidelines (all equations from Mackay & Parnis 2021):
B12: - Henry's law constant (H) an be estimated as: Vapor Pressure * Molar Mass / Solubility
B13: - Reaction half-life estimated values can be obtained from EAS-E Suite (www.eas-e-suite.com), or EPI Suite for water & air half-lives only (https://www.epa.gov/tsca-screening-tools/epi-suitetm-estimation-program-interface)
B14: - Koc can be estimated as Kow * 0.35 (Seth method) or as Kow * 0.41 (Karickhoff method)
B15: - Kaw can be calculated as H/RT, where R = Gas constant and T = temperature
B16: - Partition ratios can be calculated as the ratio of Z-values, e.g., Kaw = Za/Zw
C17: > Za = 1/RT = 4x10^-4
C18: > Zw = Za/Kaw
C19: > Zo = Zw*Kow
C20: > Z_solid = Zo * OC fraction; where any solid phase can be represented including sediment, suspended sediment, soil, etc. OC fraction default values can be found in the Environment properties sheet
C21: > Z_biota = Zo * Lipid content; where any biota can be represented, including fish. Default lipid content values can be found in the Environment properties sheet
B24: References: | C24: Mackay et al. 1996. Assessing the fate of new and existing chemicals: a five-stage process. Environ. Toxicol Chem. 15(9), 1618-1626
C25: Mackay & Parnis, 2021. Multimedia Environmental Models: The Fugacity Approach. 3rd ed. CRC Press, Taylor & Francis Group. Boca Raton, FL.

Sheet Inputs - Chemical Properties
C3: CHEMICAL PROPERTIES | D3: Please complete all required fields below or Select a chemical from the database:
C6: * indicates required input
C7: Note: insert dash (-) if property not inputted | F7: References and Notes
B9: * | C9: Chemical Name | D9: Benzo[a]pyrene
C10: CAS
B12: * | C12: Molar Mass (g/mol) | D12: 252.316
B13: * | C13: Data Temperature (°C) | D13: 25
C14: Melting Point (°C) | D14: 175
C15: Vapor Pressure (Pa) | D15: 7e-07
B16: =IF(Pressure="-","","*") -> * | C16: Henry's Law Constant (Pa·m³/mol) | D16: 0.0463
C18: Partition Ratios
C19: logKOW | D19: 6.04
B20: =IF(Pressure="-","","*") -> * | C20: KOC | D20: 383767.3687 | F20: Seth method
B21: =IF(Pressure="-","*","") ->  | C21: =IF(AND(ISNUMBER(SEARCH("N/A",Fugacity_Ratio)),KQW<1000),"Air-Water",IF(ISNUMBER(SEARCH("N/A",Fugacity_Ratio)),"Water-Air","-")) -> -
C22: =IF(AND(ISNUMBER(SEARCH("N/A",Fugacity_Ratio)),KQW<1000),"Aerosol-Water",IF(ISNUMBER(SEARCH("N/A",Fugacity_Ratio)),"Aerosol-Air","-")) -> -
C23: =IF(AND(ISNUMBER(SEARCH("N/A",Fugacity_Ratio)),KQW<1000),"Soil-Water (L/kg)",IF(ISNUMBER(SEARCH("N/A",Fugacity_Ratio)),"Soilr-Air","-")) -> -
C24: =IF(AND(ISNUMBER(SEARCH("N/A",Fugacity_Ratio)),KQW<1000),"Suspended Particles-Water (L/kg)",IF(ISNUMBER(SEARCH("N/A",Fugacity_Ratio)),"Suspended Particles-Air","-")) -> -
C25: =IF(AND(ISNUMBER(SEARCH("N/A",Fugacity_Ratio)),KQW<1000),"Sediment-Water (L/kg)",IF(ISNUMBER(SEARCH("N/A",Fugacity_Ratio)),"Sediment-Air","-")) -> -
C26: =IF(AND(ISNUMBER(SEARCH("N/A",Fugacity_Ratio)),KQW<1000),"Fish-Water (L/kg)",IF(ISNUMBER(SEARCH("N/A",Fugacity_Ratio)),"Fish-Air","-")) -> -

Sheet Inputs - Environment
C3: ENVIRONMENTAL PROPERTIES
C5: Please complete all fields or select an environment from the database:
C7: Environment Name | D7: EQC-2012- Hughes et al.
C9: Fractions | F9: Organic Carbon
C10: Aerosols in Air | D10: 2e-11 | F10: Suspended Particles (g/g) | G10: 0.2
C11: Susp. Particles in Water | D11: 5e-06 | F11: Soil (g/g) | G11: 0.02
C12: Fish in Water | D12: 1e-06 | F12: Sediment (g/g) | G12: 0.04
C14: Volume | F14: Density
C15: Air (m³) | D15: 100000000000000 | F15: Air (kg/m³) | G15: 1.185413
C16: Water (m³) | D16: 200000000000 | F16: Aerosol (kg/m³) | G16: 2000
C17: Soil (m³) | D17: 18000000000 | F17: Water (kg/m³) | G17: 1000
C18: Sediment (m³) | D18: 500000000 | F18: Suspended Particles (kg/m³) | G18: 1500
F19: Fish (kg/m³) | G19: 1000
C20: Lipid Fraction | F20: Soil (kg/m³) | G20: 2400
C21: Fish (g/g) | D21: 0.05 | F21: Sediment (kg/m³) | G21: 2400
D23: Additional Comments

Sheet Emission Amounts
C3: CHEMICAL QUANTITY
D5: Kilograms | E5: Mols
C6: Amount of Chemical | D6: 100000 | E6: =D6*1000/MolarMass -> 396328.4136

Sheet Results
C3: Level I RESULTS
C5: Chemical Name | D5: =ChemName -> Benzo[a]pyrene
C6: Environment Name | D6: =EnvName -> EQC-2012- Hughes et al.
C9: Fugacity Ratio | D9: =IF(Pressure="-","N/A",IF(MeltPt>DataTemp,EXP(6.79*(1-(MeltPt+273.15)/(DataTemp+273.15))),1)) -> 0.03284138771
C11: Subcooled Liq. Vap. Press. (Pa) | D11: =IF(Pressure="-","N/A",Pressure/Fugacity_Ratio) -> 2.131456826e-05
C13: Fugacity (Pa) | D13: =ChemAmtM/TotalVZ -> 5.237855575e-11
C15: Partition Ratio | D15: dimensionless
C16: Air-Water | D16: =IF(AND(ISNUMBER(SEARCH("N/A",Fugacity_Ratio)),KQW<1000),KAW,IF(ISNUMBER(SEARCH("N/A",Fugacity_Ratio)),"-",Z_Air/Z_Water)) -> 1.867721592e-05
C17: Soil-Water | D17: =IF(AND(ISNUMBER(SEARCH("N/A",Fugacity_Ratio)),KQW<1000),KQW*Dens_Soil/1000,IF(ISNUMBER(SEARCH("N/A",Fugacity_Ratio)),"-",Z_Soil/Z_Water)) -> 18420.8337
C18: Sediment-Water | D18: =IF(AND(ISNUMBER(SEARCH("N/A",Fugacity_Ratio)),KQW<1000),KSed*Dens_Sed/1000,IF(ISNUMBER(SEARCH("N/A",Fugacity_Ratio)),"-",Z_Sed/Z_Water)) -> 36841.66739
C19: Suspended Particles-Water | D19: =IF(AND(ISNUMBER(SEARCH("N/A",Fugacity_Ratio)),KQW<1000),KSus*Dens_Susp_Part/1000,IF(ISNUMBER(SEARCH("N/A",Fugacity_Ratio)),"-", Z_Susp_Part/Z_Water)) -> 115130.2106
C20: Fish-Water | D20: =IF(AND(ISNUMBER(SEARCH("N/A",Fugacity_Ratio)),KQW<1000),KFish*Dens_Aersl/1000,IF(ISNUMBER(SEARCH("N/A",Fugacity_Ratio)),"-", Z_Fish/Z_Water)) -> 54823.90981
C21: Aerosol-Water | D21: =IF(AND(ISNUMBER(SEARCH("N/A",Fugacity_Ratio)),KQW<1000),Z_Water*KQA,IF(ISNUMBER(SEARCH("N/A",Fugacity_Ratio)),"-","-")) -> -
C22: Aerosol-Air | D22: =IF(AND(ISNUMBER(SEARCH("N/A",Fugacity_Ratio)),KQW<1000),"-",IF(ISNUMBER(SEARCH("N/A",Fugacity_Ratio)),"-", Z_Aerosol/Z_Air)) -> 2.814976089e+11
D24: Z Value | E24: VZ | F24: V | G24: Concentration | J24: Quantity
D25: mol/m³*Pa | E25: mol/Pa | G25: mol/m³ | H25: g/m³ | I25: µg/kg | J25: mol | K25: kg | L25: %
C26: Air | D26: =IF(AND(ISNUMBER(SEARCH("N/A",Fugacity_Ratio)),KQW<1000),Z_Water*KAW,IF(ISNUMBER(SEARCH("N/A",Fugacity_Ratio)),(1/8.3144598/(DataTemp+273.15)),(1/8.3144598/(DataTemp+273.15)))) -> 0.0004033955922 | E26: =Z_Air*(1-Frac_Aersl)*Vol_Air -> 4.033955922e+10 | F26: =E26/Z_Air -> 1e+14 | G26: =Fugacity*Z_Air -> 2.112927851e-14 | H26: =G26*MolarMass -> 5.331255037e-12 | I26: - | J26: =G26*(1-Frac_Aersl)*Vol_Air -> 2.112927851 | K26: =(MolarMass*J26)/1000 -> 0.5331255037 | L26: =(100*J26)/ChemAmtM -> 0.0005331255037
C27: Aerosol | D27: =IF(AND(ISNUMBER(SEARCH("N/A",Fugacity_Ratio)),KQW<1000),Z_Water*KQA,IF(ISNUMBER(SEARCH("N/A",Fugacity_Ratio)),(IF(Z_Air=0, 0, Z_Air*KQA)),((Z_Air*6000000)/Liq_Pressure))) -> 113554894.6 | E27: =Z_Aerosol*Frac_Aersl*Vol_Air -> 2.271097893e+11 | F27: =E27/Z_Aerosol -> 2000 | G27: =Fugacity*Z_Aerosol -> 0.005947841379 | H27: =G27*MolarMass -> 1.500735546 | I27: =(H27*1000000)/Dens_Aersl -> 750.3677728 | J27: =G27*Frac_Aersl*Vol_Air -> 11.89568276 | K27: 3.001471091 | L27: 0.003001471091
C28: Water | D28: =IF(AND(ISNUMBER(SEARCH("N/A",Fugacity_Ratio)),KQW<1000),1,IF(ISNUMBER(SEARCH("N/A",Fugacity_Ratio)),(Z_Air*KAW),(1/Henry_Const))) -> 21.59827214 | E28: =Z_Water*(1-Frac_Susp_Part-Frac_Fish)*Vol_Water -> 4.31962851e+12 | F28: =E28/Z_Water -> 1.999988e+11 | G28: =Fugacity*Z_Water -> 1.131286301e-09 | H28: 2.854416344e-07 | I28: - | J28: =G28*(1-Frac_Susp_Part-Frac_Fish)*Vol_Water -> 226.2559027 | K28: 57.08798435 | L28: 0.05708798435
C29: Suspended Particles | D29: =IF(AND(ISNUMBER(SEARCH("N/A",Fugacity_Ratio)),KQW<1000),Z_Water*(KSus*Dens_Susp_Part/1000),IF(ISNUMBER(SEARCH("N/A",Fugacity_Ratio)),(Z_Air*KSus),Z_Water*Dens_Susp_Part*OrgC_Susp*KOC/1000)) -> 2486613.62 | E29: =Z_Susp_Part*Frac_Susp_Part*Vol_Water -> 2.48661362e+12 | F29: =E29/Z_Susp_Part -> 1000000 | G29: =Fugacity*Z_Susp_Part -> 0.0001302452301 | H29: 0.03286295548 | I29: =(H29*1000000)/Dens_Susp_Part -> 21.90863699 | J29: =G29*Frac_Susp_Part*Vol_Water -> 130.2452301 | K29: 32.86295548 | L29: 0.03286295548
C30: Fish | D30: =IF(AND(ISNUMBER(SEARCH("N/A",Fugacity_Ratio)),KQW<1000),Z_Water*(KFish*Dens_Aersl/1000),IF(ISNUMBER(SEARCH("N/A",Fugacity_Ratio)),(Z_Air*KFish),((1/Henry_Const)*Lipid_Fish*POWER(10,logKow)))) -> 1184101.724 | E30: =Z_Fish*Frac_Fish*Vol_Water -> 2.368203447e+11 | F30: =E30/Z_Fish -> 200000 | G30: =Fugacity*Z_Fish -> 6.202153815e-05 | H30: 0.01564902642 | I30: =(H30*1000000)/Dens_Fish -> 15.64902642 | J30: =G30*Frac_Fish*Vol_Water -> 12.40430763 | K30: 3.129805284 | L30: 0.003129805284
C31: Soil | D31: =IF(AND(ISNUMBER(SEARCH("N/A",Fugacity_Ratio)),KQW<1000),Z_Water*(KQW*Dens_Soil/1000),IF(ISNUMBER(SEARCH("N/A",Fugacity_Ratio)),(Z_Air*KQW),(Z_Water*Dens_Soil*OrgC_Soil*KOC/1000))) -> 397858.1792 | E31: =Z_Soil*Vol_Soil -> 7161447224917914 | F31: =E31/Z_Soil -> 18000000000 | G31: =Fugacity*Z_Soil -> 2.083923682e-05 | H31: 0.005258072877 | I31: =(H31*1000000)/Dens_Soil -> 2.190863699 | J31: =G31*Vol_Soil -> 375106.2627 | K31: 94645.31178 | L31: 94.64531178
C32: Sediment | D32: =IF(AND(ISNUMBER(SEARCH("N/A",Fugacity_Ratio)),KQW<1000),Z_Water*(KSed*Dens_Sed/1000),IF(ISNUMBER(SEARCH("N/A",Fugacity_Ratio)),(Z_Air*KSed),(Z_Water*Dens_Sed*OrgC_Sed*KOC/1000))) -> 795716.3583 | E32: =Z_Sed*Vol_Sed -> 3.978581792e+14 | F32: =E32/Z_Sed -> 500000000 | G32: =Fugacity*Z_Sed -> 4.167847363e-05 | H32: 0.01051614575 | I32: =(H32*1000000)/Dens_Sed -> 4.381727397 | J32: =G32*Vol_Sed -> 20839.23682 | K32: 5258.072877 | L32: 5.258072877
C34: Total | E34: =SUM(E26:E32) -> 7566615915902743 | J34: =SUM(J26:J32) -> 396328.4136 | K34: =SUM(K26:K32) -> 100000 | L34: =SUM(L26:L32) -> 100

Sheet Diagram
D2: Chemical Name: | F2: =Results!D5 -> Benzo[a]pyrene
D4: Environment: | F4: =Results!D6 -> EQC-2012- Hughes et al.
B7: =Results!D13 -> 5.237855575e-11 | C7: Pa | F7: Air
E8: Amount | F8: =Results!$K$26 -> 0.5331255037 | G8: kg
E9: Concentration | F9: =Results!I26 -> - | G9: ng/L
B10: =Results!K34 -> 100000 | C10: kg | E10: % of total chem. | F10: =Results!$L$26 -> 0.0005331255037 | G10: %
J12: =Results!$K$27 -> 3.001471091 | K12: kg
J13: =Results!I27 -> 750.3677728 | K13: ng/L
J14: =Results!$L$27 -> 0.003001471091 | K14: %
G18: Water
B20: Amount | C20: =Results!K31 -> 94645.31178 | D20: kg | F20: Amount | G20: =Results!K28 -> 57.08798435 | H20: kg
B21: Concentration | C21: =Results!I31 -> 2.190863699 | D21: ng/L | F21: Concentration | G21: =Results!I28 -> - | H21: ng/L
B22: % of total chem. | C22: =Results!L31 -> 94.64531178 | D22: % | F22: % of total chem. | G22: =Results!L28 -> 0.05708798435 | H22: %
L24: =Results!$K$29 -> 32.86295548 | M24: kg
L25: =Results!$I$29 -> 21.90863699 | M25: ng/L
L26: =Results!$L$29 -> 0.03286295548 | M26: %
F33: Amount | G33: =Results!K32 -> 5258.072877 | H33: kg
B34: Equilibrium - | F34: Concentration | G34: =Results!I32 -> 4.381727397 | H34: ng/L
F35: % of total chem. | G35: =Results!L32 -> 5.258072877 | H35: %
L36: =Results!$K$30 -> 3.129805284 | M36: kg
L37: =Results!$I$30 -> 15.64902642 | M37: ng/L
L38: =Results!$L$30 -> 0.003129805284 | M38: %

Sheet Charts

Sheet Chemical Database
M7: Partition Ratios
A8: CAS | B8: Chemical Name | C8: Molar Mass | D8: Data Temp. | E8: Melting Point | G8: Vapor pressure | I8: Solubility in Water | K8: Henry's Law Constant | M8: logKOW | O8: KOC | Q8: Air-Water (KAW)/Water-Air | S8: Aerosol-Water/Aerosol-Air | U8: Soil-Water/Soil-Air | W8: Suspended Particles-Water/Suspended Particles-Air | Y8: Sediment-Water/Sediment-Air | AA8: Fish-Water/Fish-Air | AB8: NOTES
C9: (g/mol) | D9: °C | E9: °C | F9: Ref. | G9: (Pa) | H9: Ref. | I9: (g/m³ or mg/L) | J9: Ref. | K9: (Pa·m³/mol) | L9: Ref. | N9: Ref. | O9: unitless | P9: Ref. | Q9: unitless (m³/m³) | R9: Ref. | S9: unitless | T9: Ref. | U9: unitless | V9: Ref. | W9: unitless | X9: Ref. | Y9: unitless | Z9: Ref. | AA9: unitless
B10: Specimen Type 1 | C10: 250 | D10: 25 | E10: 275 | G10: 0.02 | I10: 30 | K10: =IF(OR(B10="",G10="",B10="-",G10="-"),"",G10*C10/I10) -> 0.1666666667 | M10: 2.5 | O10: =IF(OR(M10="",M10="-"),"",0.35*10^M10) -> 110.6797181 | P10: =IF(O10=0.35*10^M10,"Seth method","") -> Seth method | AB10: Example values for type 1 chemicals such as benzene
B11: Specimen Type 2 | C11: 250 | D11: 25 | E11: - | G11: - | I11: - | K11: - | M11: - | O11: =IF(OR(M11="",M11="-"),"",0.35*10^M11) ->  | Q11: 6.72e-05 | S11: 57.9 | U11: 2.59 | W11: 5.19 | Y11: 5.19 | AA11: 15.2 | AB11: Example values for type 2 chemical such as alkylbenzene sulfonates
B12: Specimen Type 3 | C12: 131.4 | D12: 25 | E12: - | G12: - | I12: - | K12: - | M12: - | O12: =IF(OR(M12="",M12="-"),"",0.35*10^M12) ->  | Q12: 15000 | S12: 1010000 | U12: 58000 | W12: 116000 | Y12: 116000 | AA12: 226000 | AB12: Example values for type 3 chemicals such as mineral oil
B13: Benzene | C13: 78.11 | D13: 25 | E13: 5.53 | G13: 12700 | I13: 1780 | K13: =IF(OR(B13="",G13="",B13="-",G13="-"),"",G13*C13/I13) -> 557.3016854 | M13: 2.13 | O13: =IF(OR(M13="",M13="-"),"",0.35*10^M13) -> 47.21370089 | P13: =IF(O13=0.35*10^M13,"Seth method","") -> Seth method
B14: Toluene | C14: 92.13 | D14: 25 | E14: -95 | G14: 3800 | I14: 515 | K14: 679.7941748 | M14: 2.69 | O14: 171.4225868 | P14: Seth method
B15: Chlorobenzene | C15: 112.6 | D15: 25 | E15: -45.6 | G15: 1580 | I15: 484 | K15: 367.5785124 | M15: 2.8 | O15: 220.8350706 | P15: Seth method
B16: 1,4-Dichlorobenzene | C16: 147.01 | D16: 25 | E16: 53.1 | G16: 130 | I16: 83 | K16: 230.2566265 | M16: 3.4 | O16: 879.160251 | P16: Seth method
B17: Hexachlorobenzene | C17: 284.8 | D17: 25 | E17: 230 | G17: 0.0023 | I17: 0.005 | K17: 131.008 | M17: 5.5 | O17: 110679.7181 | P17: Seth method
B18: N-hexane | C18: 86.17 | D18: 25 | E18: -95 | G18: 20200 | I18: 9.5 | K18: 183224.6316 | M18: 4.11 | O18: 4508.873431 | P18: Seth method
B19: Tricholoroethylene | C19: 131.39 | D19: 25 | E19: -73 | G19: 9900 | I19: 1100 | K19: 1182.51 | M19: 2.53 | O19: 118.5954546 | P19: Seth method
B20: 1-Pentanol | C20: 88.149 | D20: 25 | E20: -78.2 | G20: 300 | I20: 22000 | K20: 1.202031818 | M20: 1.5 | O20: 11.06797181 | P20: Seth method
B21: Aniline | C21: 93.12 | D21: 25 | E21: -6.3 | G21: 65.19 | I21: 36070 | K21: 0.1682975548 | M21: 0.9 | O21: 2.780148822 | P21: Seth method
B22: Naphthalene | C22: 128.19 | D22: 25 | E22: 80.5 | G22: 10.4 | I22: 31 | K22: 43.00567742 | M22: 3.37 | O22: 820.4800854 | P22: Seth method
B23: Phenanthrene | C23: 178.2 | D23: 25 | E23: 101 | G23: 0.02 | I23: 1.1 | K23: 3.24 | M23: 4.57 | O23: 13003.73302 | P23: Seth method
B24: Pyrene | C24: 202.3 | D24: 25 | E24: 156 | G24: 0.0006 | I24: 0.132 | K24: 0.9195454545 | M24: 5.18 | O24: 52974.6437 | P24: Seth method
B25: PCB-15 | C25: 223.1 | D25: 25 | E25: 149 | G25: 0.0048 | I25: 0.06 | K25: 17.848 | M25: 5.3 | O25: 69834.18102 | P25: Seth method
B26: PCB-52 | C26: 292 | D26: 25 | E26: 87 | G26: 0.0049 | I26: 0.03 | K26: 47.69333333 | M26: 6.1 | O26: 440623.8941 | P26: Seth method
B27: PCB-209 | C27: 498.7 | D27: 25 | E27: 305.9 | G27: 5.02e-08 | I27: 1e-05 | K27: 2.503474 | M27: 8.26 | O27: 63689530.05 | P27: Seth method
B28: Dibenzo-p-dioxin | C28: 184 | D28: 25 | E28: 123 | G28: 0.055 | I28: 0.865 | K28: 11.69942197 | M28: 4.3 | O28: 6983.418102 | P28: Seth method
B29: 4-chlorophenol | C29: 128.56 | D29: 25 | E29: 43 | G29: 20 | I29: 27000 | K29: 0.09522962963 | M29: 2.4 | O29: 87.9160251 | P29: Seth method
B30: Pentachlorophenol | C30: 266.34 | D30: 25 | E30: 190 | G30: 0.00415 | I30: 14 | K30: 0.07895078571 | M30: 5.05 | O30: 39270.6459 | P30: Seth method
B31: DEHP | C31: 390.54 | D31: 25 | E31: -50 | G31: 1.33e-05 | I31: 0.285 | K31: 0.0182252 | M31: 5.11 | O31: 45088.73431 | P31: Seth method
B32: p,p'-DDT | C32: 354.5 | D32: 25 | E32: 108.5 | G32: 2e-05 | I32: 0.0055 | K32: 1.289090909 | M32: 6.19 | O32: 542085.8166 | P32: Seth method
B33: Lindane | C33: 290.85 | D33: 25 | E33: 112 | G33: 0.00374 | I33: 7.3 | K33: 0.1490108219 | M33: 3.7 | O33: 1754.155318 | P33: Seth method
B34: Atrazine | C34: 215.68 | D34: 25 | E34: 174 | G34: 4e-05 | I34: 30 | K34: 0.0002875733333 | M34: 2.75 | O34: 196.8194638 | P34: Seth method
B35: Hypothene | C35: 200 | D35: 27.5 | E35: 0 | G35: 1 | I35: 20 | K35: 10 | M35: 4 | O35: 3500 | P35: Seth method | AB35: Hypothetical chemical
B36: Benzo[a]pyrene | C36: 252.316 | D36: 25 | E36: 175 | G36: 7e-07 | K36: 0.0463 | M36: 6.04 | O36: 383767.3687 | P36: Seth method
K70: =IF(OR(B70="",G70="",B70="-",G70="-"),"",G70*C70/I70) -> 
O74: =IF(OR(M74="",M74="-"),"",0.35*10^M74) ->  | P74: =IF(O74=0.35*10^M74,"Seth method","") -> 
K134: =IF(OR(B134="",G134="",B134="-",G134="-"),"",G134*C134/I134) -> 
O138: =IF(OR(M138="",M138="-"),"",0.35*10^M138) ->  | P138: =IF(O138=0.35*10^M138,"Seth method","") -> 
K198: =IF(OR(B198="",G198="",B198="-",G198="-"),"",G198*C198/I198) -> 
O202: =IF(OR(M202="",M202="-"),"",0.35*10^M202) ->  | P202: =IF(O202=0.35*10^M202,"Seth method","") -> 
K262: =IF(OR(B262="",G262="",B262="-",G262="-"),"",G262*C262/I262) -> 
O266: =IF(OR(M266="",M266="-"),"",0.35*10^M266) ->  | P266: =IF(O266=0.35*10^M266,"Seth method","") -> 
K326: =IF(OR(B326="",G326="",B326="-",G326="-"),"",G326*C326/I326) -> 
O330: =IF(OR(M330="",M330="-"),"",0.35*10^M330) ->  | P330: =IF(O330=0.35*10^M330,"Seth method","") -> 
K390: =IF(OR(B390="",G390="",B390="-",G390="-"),"",G390*C390/I390) -> 
O394: =IF(OR(M394="",M394="-"),"",0.35*10^M394) ->  | P394: =IF(O394=0.35*10^M394,"Seth method","") -> 
K454: =IF(OR(B454="",G454="",B454="-",G454="-"),"",G454*C454/I454) -> 
O458: =IF(OR(M458="",M458="-"),"",0.35*10^M458) ->  | P458: =IF(O458=0.35*10^M458,"Seth method","") -> 
K518: =IF(OR(B518="",G518="",B518="-",G518="-"),"",G518*C518/I518) -> 
O522: =IF(OR(M522="",M522="-"),"",0.35*10^M522) ->  | P522: =IF(O522=0.35*10^M522,"Seth method","") -> 
K582: =IF(OR(B582="",G582="",B582="-",G582="-"),"",G582*C582/I582) -> 
O586: =IF(OR(M586="",M586="-"),"",0.35*10^M586) ->  | P586: =IF(O586=0.35*10^M586,"Seth method","") -> 
K646: =IF(OR(B646="",G646="",B646="-",G646="-"),"",G646*C646/I646) -> 
O650: =IF(OR(M650="",M650="-"),"",0.35*10^M650) ->  | P650: =IF(O650=0.35*10^M650,"Seth method","") -> 
K710: =IF(OR(B710="",G710="",B710="-",G710="-"),"",G710*C710/I710) -> 
O714: =IF(OR(M714="",M714="-"),"",0.35*10^M714) ->  | P714: =IF(O714=0.35*10^M714,"Seth method","") -> 
K774: =IF(OR(B774="",G774="",B774="-",G774="-"),"",G774*C774/I774) -> 
O778: =IF(OR(M778="",M778="-"),"",0.35*10^M778) ->  | P778: =IF(O778=0.35*10^M778,"Seth method","") -> 
K838: =IF(OR(B838="",G838="",B838="-",G838="-"),"",G838*C838/I838) -> 
O842: =IF(OR(M842="",M842="-"),"",0.35*10^M842) ->  | P842: =IF(O842=0.35*10^M842,"Seth method","") -> 
K902: =IF(OR(B902="",G902="",B902="-",G902="-"),"",G902*C902/I902) -> 
O906: =IF(OR(M906="",M906="-"),"",0.35*10^M906) ->  | P906: =IF(O906=0.35*10^M906,"Seth method","") -> 
K966: =IF(OR(B966="",G966="",B966="-",G966="-"),"",G966*C966/I966) -> 
O970: =IF(OR(M970="",M970="-"),"",0.35*10^M970) ->  | P970: =IF(O970=0.35*10^M970,"Seth method","") -> 
K1030: =IF(OR(B1030="",G1030="",B1030="-",G1030="-"),"",G1030*C1030/I1030) -> 
O1034: =IF(OR(M1034="",M1034="-"),"",0.35*10^M1034) ->  | P1034: =IF(O1034=0.35*10^M1034,"Seth method","") -> 
K1094: =IF(OR(B1094="",G1094="",B1094="-",G1094="-"),"",G1094*C1094/I1094) -> 
O1098: =IF(OR(M1098="",M1098="-"),"",0.35*10^M1098) ->  | P1098: =IF(O1098=0.35*10^M1098,"Seth method","") -> 
K1158: =IF(OR(B1158="",G1158="",B1158="-",G1158="-"),"",G1158*C1158/I1158) -> 
O1162: =IF(OR(M1162="",M1162="-"),"",0.35*10^M1162) ->  | P1162: =IF(O1162=0.35*10^M1162,"Seth method","") -> 
K1222: =IF(OR(B1222="",G1222="",B1222="-",G1222="-"),"",G1222*C1222/I1222) -> 
O1226: =IF(OR(M1226="",M1226="-"),"",0.35*10^M1226) ->  | P1226: =IF(O1226=0.35*10^M1226,"Seth method","") -> 
K1286: =IF(OR(B1286="",G1286="",B1286="-",G1286="-"),"",G1286*C1286/I1286) -> 
O1290: =IF(OR(M1290="",M1290="-"),"",0.35*10^M1290) ->  | P1290: =IF(O1290=0.35*10^M1290,"Seth method","") -> 
K1350: =IF(OR(B1350="",G1350="",B1350="-",G1350="-"),"",G1350*C1350/I1350) -> 
O1354: =IF(OR(M1354="",M1354="-"),"",0.35*10^M1354) ->  | P1354: =IF(O1354=0.35*10^M1354,"Seth method","") -> 
K1414: =IF(OR(B1414="",G1414="",B1414="-",G1414="-"),"",G1414*C1414/I1414) -> 
O1418: =IF(OR(M1418="",M1418="-"),"",0.35*10^M1418) ->  | P1418: =IF(O1418=0.35*10^M1418,"Seth method","") -> 
K1478: =IF(OR(B1478="",G1478="",B1478="-",G1478="-"),"",G1478*C1478/I1478) -> 
O1482: =IF(OR(M1482="",M1482="-"),"",0.35*10^M1482) ->  | P1482: =IF(O1482=0.35*10^M1482,"Seth method","") -> 
K1542: =IF(OR(B1542="",G1542="",B1542="-",G1542="-"),"",G1542*C1542/I1542) -> 
O1546: =IF(OR(M1546="",M1546="-"),"",0.35*10^M1546) ->  | P1546: =IF(O1546=0.35*10^M1546,"Seth method","") -> 
K1606: =IF(OR(B1606="",G1606="",B1606="-",G1606="-"),"",G1606*C1606/I1606) -> 
O1610: =IF(OR(M1610="",M1610="-"),"",0.35*10^M1610) ->  | P1610: =IF(O1610=0.35*10^M1610,"Seth method","") -> 
K1670: =IF(OR(B1670="",G1670="",B1670="-",G1670="-"),"",G1670*C1670/I1670) -> 
O1674: =IF(OR(M1674="",M1674="-"),"",0.35*10^M1674) ->  | P1674: =IF(O1674=0.35*10^M1674,"Seth method","") -> 
K1734: =IF(OR(B1734="",G1734="",B1734="-",G1734="-"),"",G1734*C1734/I1734) -> 
O1738: =IF(OR(M1738="",M1738="-"),"",0.35*10^M1738) ->  | P1738: =IF(O1738=0.35*10^M1738,"Seth method","") -> 
K1798: =IF(OR(B1798="",G1798="",B1798="-",G1798="-"),"",G1798*C1798/I1798) -> 
O1802: =IF(OR(M1802="",M1802="-"),"",0.35*10^M1802) ->  | P1802: =IF(O1802=0.35*10^M1802,"Seth method","") -> 
K1862: =IF(OR(B1862="",G1862="",B1862="-",G1862="-"),"",G1862*C1862/I1862) -> 
O1866: =IF(OR(M1866="",M1866="-"),"",0.35*10^M1866) ->  | P1866: =IF(O1866=0.35*10^M1866,"Seth method","") -> 
K1926: =IF(OR(B1926="",G1926="",B1926="-",G1926="-"),"",G1926*C1926/I1926) -> 
O1930: =IF(OR(M1930="",M1930="-"),"",0.35*10^M1930) ->  | P1930: =IF(O1930=0.35*10^M1930,"Seth method","") -> 
K1990: =IF(OR(B1990="",G1990="",B1990="-",G1990="-"),"",G1990*C1990/I1990) -> 
O1994: =IF(OR(M1994="",M1994="-"),"",0.35*10^M1994) ->  | P1994: =IF(O1994=0.35*10^M1994,"Seth method","") -> 
... 33 more rows

Sheet Environment Database
B7: Fractions | E7: Volume | I7: Lipid Fraction | J7: Density | Q7: Organic Carbon
A8: Name | B8: Aerosols in Air | C8: Susp. Particles in Water | D8: Fish in Water | E8: Air | F8: Water | G8: Soil | H8: Sediment | I8: Fish | J8: Air | K8: Aerosol | L8: Water | M8: Suspended Particles | N8: Fish | O8: Soil | P8: Sediment | Q8: Suspended Particles | R8: Soil | S8: Sediment | T8: NOTES
E9: m³ | F9: m³ | G9: m³ | H9: m³ | I9: g/g | J9: kg/m³ | K9: kg/m³ | L9: kg/m³ | M9: kg/m³ | N9: kg/m³ | O9: kg/m³ | P9: kg/m³ | Q9: (g/g) | R9: (g/g) | S9: (g/g)
A10: Default (EQC- standard environment) | B10: 2e-11 | C10: 5e-06 | D10: =0.000001 -> 1e-06 | E10: 100000000000000 | F10: 200000000000 | G10: 9000000000 | H10: 100000000 | I10: 0.05 | J10: 1.185413 | K10: 2000 | L10: 1000 | M10: 1500 | N10: 1000 | O10: 2400 | P10: 2400 | Q10: 0.2 | R10: 0.02 | S10: 0.04
A11: Hypothene | B11: 0 | C11: 0 | D11: 0 | E11: 6000000000 | F11: 7000000 | G11: 45000 | H11: 21000 | I11: 0.05 | J11: 1.175 | K11: 2000 | L11: 1000 | M11: 1500 | N11: 1000 | O11: 1500 | P11: 1500 | Q11: 0.2 | R11: 0.02 | S11: 0.04
A12: EQC-2012- Hughes et al. | B12: 2e-11 | C12: 5e-06 | D12: 1e-06 | E12: 100000000000000 | F12: 200000000000 | G12: 18000000000 | H12: 500000000 | J12: 1.185413 | K12: 2000 | L12: 1000 | M12: 1500 | N12: 1000 | O12: 2400 | P12: 2400 | Q12: 0.02 | R12: 0.04
